Cogmind - Beta 16.1 @@@ ROGUE MODE // 2026.04.01 @ 23:10:27 Player: daxter767676 Result: Destroyed by N3-IDA(R) with Subdweller Laser Performance ------------- Evolutions (0) 0 Regions Visited (2) 400 Robots Destroyed (20) 100 Value Destroyed (398) 398 Prototype IDs (2) 40 Alien Tech Used (0) 0 Bonus (0) 0 TOTAL SCORE: 938 Bonus ------- None Cogmind --------- Core Integrity 0/250 Matter 300/300 Energy 99/100 System Corruption 0% Temperature Cool (6) Movement Core (50) Location -10/Subcaves Parts ------- > --- POWER (1) -------- (None) > --- PROPULSION (2) --- (None) > --- UTILITY (2) ------ Structural Scanner > --- WEAPON (2) ------- Makeshift Sword > --- INVENTORY (5) ---- Light Ion Engine Improved Heat Sink High-capacity Storage Unit Grenade Launcher Mining Laser Peak State ------------ > --- POWER ------------ Light Ion Engine > --- PROPULSION ------- Flight Unit Flight Unit > --- UTILITY ---------- Structural Scanner Improved Terrain Scanner > --- WEAPON ----------- Riot Gun Barrage Gun > --- INVENTORY -------- Light Ion Engine Improved Heat Sink High-capacity Storage Unit Grenade Launcher Mining Laser [Rating: 13] Favorites ----------- Power Light Ion Engine Engine Light Ion Engine Propulsion Wheel Leg Aluminum Leg Wheel Wheel Flight Unit Flight Unit Utility Improved Terrain Scanner Device Improved Terrain Scanner Storage Small Storage Unit Weapon Light Assault Rifle Energy Gun Riot Gun Ballistic Gun Light Assault Rifle Special Weapon Mining Laser Slashing Weapon Makeshift Sword Build | -11 -10 -10 ------- Run | Yrd Mat Sub Slots Evolved . | . . . Power . | . . . Propulsion . | . . . Utility . | . . . Weapon . | . . . Parts Attached 22 | 6 13 3 Power 2 | 1 1 . Engine 2 | 1 1 . Core . | . . . Reactor . | . . . Propulsion 8 | 3 5 . Treads . | . . . Leg . | . . . Wheel 5 | 3 2 . Hover . | . . . Flight 3 | . 3 . Utility 4 | 2 2 . Device 4 | 2 2 . Storage . | . . . Processor . | . . . Hackware . | . . . Protection . | . . . Artifact . | . . . Weapon 8 | . 5 3 Energy Gun 1 | . . 1 Energy Cannon . | . . . Ballistic Gun 4 | . 3 1 Ballistic Cannon . | . . . Launcher . | . . . Special Weapon 2 | . 2 . Impact Weapon . | . . . Slashing Weapon 1 | . . 1 Piercing Weapon . | . . . Special Melee Weapon . | . . . Unidentified Prototypes . | . . . Parts Lost 8 | . 4 4 Power 2 | . 1 1 Propulsion 4 | . 2 2 Utility 2 | . 1 1 Weapon . | . . . Highest Loss Streak 4 | . 3 4 To Critical Strikes . | . . . Average Backups 5 | 6 5 5 Power . | . . 1 Propulsion 1 | 4 . . Utility 2 | . 2 2 Weapon 1 | 1 1 2 Tool/Special . | . . . Unused Backups 19 | 12 3 4 Power 3 | 2 . 1 Propulsion 7 | 7 . . Utility 5 | 1 2 2 Weapon 4 | 2 1 1 Tool/Special . | . . . Average Slot Usage (%) 96 | . 97 79 Engine 13 | . 13 12 Wheel 17 | . 19 . Flight 8 | . 7 24 Device 27 | . 27 26 Ballistic Gun 25 | . 27 5 Peak Build Rating 13 | 9 9 13 Average Rating 8 | 6 8 9 On Entrance 8 | 6 9 9 Avg Prop Armor Cover (%) 3 | . 3 . Naked Turns . | . . . Heaviest Build 13 | 13 8 8 Greatest Support 20 | 20 20 8 Greatest Overweight (x) 2 | 1 . 2 Average Overweight (x) . | . . . Largest Inventory Capacity 8 | 8 5 5 Average Capacity 5 | 7 5 5 Most Carried 8 | 8 5 5 Average Carried 5 | 6 4 5 Final Capacity 5 | 5 5 5 Final Carried 5 | 5 5 5 Class Distribution -------------------- 81% | Scavenger-Mutant 18% | Mutant Dominant Class ---------------- Scavenger-Mutant | -10/Materials Mutant | -10/Subcaves Resources | -11 -10 -10 ----------- Run | Yrd Mat Sub Matter Collected 636 | 316 258 62 Remotely . | . . . Salvage Created 616 | 187 348 81 Parts 44 | 16 23 5 Haulers Intercepted . | . . . Recyclers Shooed 1 | . 1 . Parts Field Recycled . | . . . Retrieved Matter . | . . . Parts Self-Destructed . | . . . Prevented . | . . . Parts Restored . | . . . Kills | -11 -10 -10 ------- Run | Yrd Mat Sub Combat Hostiles Destroyed 14 | . 12 2 Melee 2 | . . 2 Guns 12 | . 12 . Classes Destroyed 5 | 2 2 1 Tunneler 5 | 5 . . Recycler 1 | 1 . . Swarmer 6 | . 6 . Grunt 6 | . 6 . Subdweller 2 | . . 2 Best Kill Streak 5 | 4 5 2 Combat Bots Only 5 | . 5 2 Max Kills in Single Turn 1 | 1 1 1 Gunslinging . | . . . Exploded . | . . . Melee 1 | . . 1 Uniques/NPCs Destroyed . | . . . Combat | -11 -10 -10 -------- Run | Yrd Mat Sub Hostile Shots Fired 80 | . 66 14 Missed 24 | . 21 3 Hits 56 | . 45 11 Projectile 56 | . 45 11 AOE 1 | . . 1 Damage Taken 770 | . 471 299 Core 256 | . 120 136 Absorbed by Shields . | . . . Core Remaining (%) 100 | 100 . . Volleys Fired 58 | 14 44 . Largest 2 | 2 2 . Hottest 100 | 40 100 . Shots Fired 114 | 28 86 . Gun 112 | 28 84 . Cannon . | . . . Launcher . | . . . Special 2 | . 2 . Kinetic 112 | 28 84 . Thermal 2 | . 2 . Explosive . | . . . Electromagnetic . | . . . Robot Hit Streak 5 | 5 5 . Robot Miss Streak 4 | 2 4 . Penetration Max . | . . . Secondary Targets 2 | . 2 . Max Gunslinging Chain 1 | . 1 . Shots Hit Robots 71 | 16 48 7 Core Hits 30 | 8 20 2 Critical Kills . | . . . Critical Parts Destroyed . | . . . Critical Strikes . | . . . Melee Attacks 8 | . . 8 Impact . | . . . Slashing 8 | . . 8 Piercing . | . . . Sneak Attacks . | . . . Combat Hostiles . | . . . Follow-up Attacks . | . . . Damage Inflicted 981 | 186 536 259 Guns 722 | 186 536 . Cannons . | . . . Explosions . | . . . Melee 259 | . . 259 Ramming . | . . . Kinetic 722 | 186 536 . Thermal . | . . . Explosive . | . . . Electromagnetic . | . . . Impact . | . . . Slashing 259 | . . 259 Piercing . | . . . Highest Corruption . | . . . Average Corruption . | . . . Corruption Purged . | . . . Corruption Blocked . | . . . Overload Shots . | . . . Overflow Damage . | . . . Projectiles . | . . . Explosions . | . . . Melee . | . . . Knockbacks . | . . . Impact . | . . . Kinetic . | . . . Secondary . | . . . Self-Inflicted Damage . | . . . Shots . | . . . Rammed . | . . . Targets Rammed . | . . . Kicked . | . . . Crushed . | . . . Highest Temperature 32 | . 32 . Average Temperature 9 | . 9 . Received Heat Transfer 249 | . 183 66 Siege Activations . | . . . Martial Activations . | . . . Shielding Activations . | . . . Robots Disrupted . | . . . Combat Hostiles . | . . . Robots Corrupted . | . . . Combat Hostiles . | . . . Parts Fried . | . . . Impact Corruptions . | . . . Robots Melted . | . . . Combat Hostiles . | . . . Parts Melted . | . . . Heat Transferred . | . . . Parts Sabotaged . | . . . Parts Stolen . | . . . Parts Stripped . | . . . Power Chain Reactions . | . . . Alert | -11 -10 -10 ------- Run | Yrd Mat Sub Maximum Alert Level . | . . . Low Security (%) 100 | 100 100 . Level 1 . | . . . Level 2 . | . . . Level 3 . | . . . Level 4 . | . . . Level 5 . | . . . High Security . | . . . Max Security . | . . . Peak Influence 147 | 15 147 . Initial . | . . . Average 50 | 4 55 . Influence Increases 398 | 30 368 . Destroy 0b10 Robot/C 240 | . 240 . Destroy 0b10 Robot/NC 30 | 30 . . Destroy Leader 40 | . 40 . Successful Hack 26 | . 26 . Destroy Structure 2 | . 2 . Lose Combat Pursuer 60 | . 60 . Influence Decreases 398 | 30 270 98 Entered New Map 48 | . . 48 Time Decay 290 | 30 230 30 Lost Part 60 | . 40 20 Squads Dispatched 2 | . 2 . Investigation 1 | . 1 . Extermination . | . . . Reinforcement 1 | . 1 . Assault . | . . . Garrison . | . . . Intercept . | . . . Searches Triggered . | . . . Construction Impeded . | . . . Haulers Reinforced . | . . . Active Scanning Responses . | . . . Cargo Convoy Interrupts . | . . . Stealth | -11 -10 -10 --------- Run | Yrd Mat Sub Distress Signals 1 | . 1 . Communications Jammed . | . . . Distress Signals . | . . . Times Spotted 25 | . 22 3 Peak Tracking Total 5 | . 5 3 Tactical Retreats 3 | . 3 . Traps | -11 -10 -10 ------- Run | Yrd Mat Sub Traps Triggered 1 | . 1 . Indirectly . | . . . Trap Hack Attempts . | . . . Triggered . | . . . Disarmed . | . . . Reprogrammed . | . . . Reused . | . . . Traps Extracted . | . . . Installed . | . . . Triggered . | . . . Machines | -11 -10 -10 ---------- Run | Yrd Mat Sub Machines Disabled . | . . . Max in Single Turn . | . . . Machines Repaired . | . . . Machines Dismantled . | . . . Machines Sabotaged . | . . . Overloaded Fab Kills . | . . . Hacking | -11 -10 -10 --------- Run | Yrd Mat Sub Machines Accessed 7 | . 7 . Terminals 6 | . 6 . Fabricators . | . . . Repair Stations 1 | . 1 . Recycling Units . | . . . Scanalyzers . | . . . Garrison Access . | . . . Total Hacks 28 | . 28 . Successful 12 | . 12 . Failed 16 | . 16 . Catastrophic 3 | . 3 . Database Lockouts . | . . . Manual 26 | . 26 . Terminals 27 | . 27 . Fabricators . | . . . Repair Stations 1 | . 1 . Recycling Units . | . . . Scanalyzers . | . . . Garrison Access . | . . . Terminal Hacks 1 | . 1 . Prototype ID Bank 1 | . 1 . Fabricator Hacks . | . . . Repair Station Hacks . | . . . Recycling Unit Hacks . | . . . Scanalyzer . | . . . Garrison Access Hacks . | . . . Unauthorized Hacks 11 | . 11 . Terminals 11 | . 11 . Track 1 | . 1 . Assimilate 1 | . 1 . Botnet 3 | . 3 . Operators 1 | . 1 . Skim 5 | . 5 . Fabricators . | . . . Repair Stations . | . . . Recycling Units . | . . . Scanalyzers . | . . . Garrison Access . | . . . Data Cores Recovered . | . . . Used . | . . . Hacking Detections 7 | . 7 . Full Trace Events . | . . . Feedback Events . | . . . Feedback Blocked . | . . . Robot Schematics Acquired . | . . . Robots Built . | . . . Authchips . | . . . Time . | . . . Total Robot Build Rating . | . . . Part Schematics Acquired . | . . . Parts Built . | . . . Authchips . | . . . Time . | . . . Total Part Build Rating . | . . . Part Studies Acquired . | . . . Parts Repaired . | . . . Time . | . . . Parts Recycled . | . . . Recycled Matter . | . . . Retrieved Matter . | . . . Retrieved Components . | . . . Parts Scanalyzed . | . . . Part Schematics Acquired . | . . . Parts Damaged . | . . . Bothacking | -11 -10 -10 ------------ Run | Yrd Mat Sub Used RIF Installer . | . . . Robots Hacked . | . . . Non-combat . | . . . Combat . | . . . Robot Hacks Applied . | . . . Relay Couplers Released . | . . . Fabnet Peak Effective % . | . . . Robots Rewired . | . . . Allies Hacked . | . . . Hacks Repelled . | . . . Allies | -11 -10 -10 -------- Run | Yrd Mat Sub Total Allies . | . . . Largest Group . | . . . Highest-Rated Group . | . . . Highest-Rated Ally . | . . . Total Orders . | . . . Ally Attacks . | . . . Total Damage . | . . . Kills . | . . . Allies Corrupted . | . . . Allies Melted . | . . . Intel | -11 -10 -10 ------- Run | Yrd Mat Sub Active Infowar (turns) 885 | 27 782 76 Terrain 877 | 27 782 68 Structural 218 | . 142 76 Seismic 551 | 25 526 . Robot Analysis Total . | . . . Derelict Logs Recovered . | . . . Drone Launches . | . . . Drone Recoveries . | . . . Exploration | -11 -10 -10 ------------- Run | Yrd Mat Sub Turns Passed 955 | 97 782 76 Spaces Moved 811 | 35 674 102 Core 3 | . . 3 Treads . | . . . Legs 1 | 1 . . Wheels 306 | 34 272 . Hover . | . . . Flight 501 | . 402 99 Fastest Speed 37 | 80 37 37 Average Speed 53 | 82 54 40 Slowest Speed 150 | 120 80 150 Overloaded Moves . | . . . Propulsion Burnouts . | . . . Robots Hopped 5 | . 5 . Potential Cave-ins . | . . . Cave-ins Triggered . | . . . Exploration Rate (%) 27 | 2 73 8 Regions Visited 2 Branch Regions 1 Pre-discovered Areas . | . . . Known Exits Taken 1 | . 1 . Unknown Exits Taken 1 | 1 . . Scrap Searched 2 | . . 2 Spaces Dug 2 | . 2 . Terrain Destroyed 2 | . 2 . Melee . | . . . Projectile 2 | . 2 . AOE . | . . . Terrain Rammed . | . . . Walls Destroyed . | . . . Machines Disabled . | . . . Actions | -11 -10 -10 --------- Run | Yrd Mat Sub Total 1215 | 80 1006 129 Wait 285 | 11 263 11 Move 799 | 34 663 102 Hop 5 | . 5 . Pick Up 10 | 5 5 . Fast Attach 14 | 5 6 3 Attach 2 | . 2 . Detach 2 | 2 . . Swap 8 | 1 6 1 Drop 24 | 8 12 4 Fire 58 | 14 44 . Melee 8 | . . 8 Ram . | . . . Kick . | . . . Crush . | . . . Escape Stasis . | . . . Rewire . | . . . Trap . | . . . Miscellaneous . | . . . Route ------- -11/Scrapyard -10/Materials (discovered 4 exits: *Mat x2 / [*Min] / *Sub) -10/Subcaves (discovered 1 exit: [*Mat]) History --------- Turn | Location | Event 24 | -11/Scrapyard | Discovered new exit (range 3) 98 | -11/Scrapyard | Entered Materials 305 | -10/Materials | Build established: Scavenger-Mutant 383 | -10/Materials | Discovered new exit (range 6) 527 | -10/Materials | Discovered new exit (range 13) 658 | -10/Materials | Lost 3 parts (1p1n1u) 842 | -10/Materials | Identified exit to Subcaves 842 | -10/Materials | Identified exit to Materials 880 | -10/Materials | Learned location of 1 exit from Storage 880 | -10/Materials | Entered Subcaves 881 | -10/Subcaves | Approached by a straggling Scientist 883 | -10/Subcaves | Shifting Twisted Machinery released Riot Gun 910 | -10/Subcaves | Discovered new exit (range 14) 933 | -10/Subcaves | Disturbed a concealed Subdweller 934 | -10/Subcaves | Core integrity fell below 50% 949 | -10/Subcaves | Core integrity fell below 20% 956 | -10/Subcaves | Destroyed by N3-IDA(R) with Subdweller Laser Last Messages --------------- 00929_ Dropped Riot Gun. 00930_ Searching scrap... 00930_ Found Barrage Gun. 00930_ Found 59 Matter. 2T-ZFV(c): "I think it's somewhere southwest of here" 00931_ Acquired 45 matter. 00932_ Dropped Barrage Gun. 00932_ Acquired Mak. Sword. 00933_ KY-JFB(R) angrily emerges from the Twisted Machinery. 00934_ KY-JFB(R) destroyed. 00935_ Acquired 10 matter. 00936_ 2T-ZFV(c) destroyed. 00941_ Flight Unit destroyed. 00943_ Tech Extrapolator violently self-destructs. 00946_ Lgt. Ion Engine destroyed. 00948_ Imp. Terrain Scanner destroyed. 00949_ LF-B2R(R) destroyed. Map ----- +----------------------------------------------------+ | ?????????????????????????????????????????????????? | | ?????????????????????????????????????????????????? | | ?????????????????????????????????????????????????? | | ?????????????????????????????????????????????????? | | ?????????????????????????????????????????????????? | | ???????????????????????????#####?????????????????? | | ???????????????????????????######????#???????????? | | ???????????????????????????## ##????????????????? | | ???????????????????????????## ###??????????????? | | ????????????????????????????# #####????????????? | | ???????????????????????? ??## #########???????? | | ??????????????????????## ??## #######???????? | | ?????????????????????### #### ### ##???????? | | ?????????????????????### ##### ##???????? | | ?????????????????????## #### < ##???????? | | ?????????????????????## ###???????? | | ????????????????????? ###????????? | | ??????????????????????? ## ##?????????? | | ??????????????????????? ##### ###?????????? | | ?????????????????????? ##### ####????????? | | ????????? ????? ??????## #### ##?#????????? | | ???????????????#??????## ###### ##??????????? | | ????????? ????????????## ###### ##??????????? | | ??????????????????#??### *# ###?## # # #?????????? | | ???????#?????????????###R%&######## ###?????????? | | ????????????????####### @######### ####????????? | | ?????????????########## = ##### ##### ###????????? | | ?????????????##### #### % #### #### ##????????? | | ?????????????## """ * #### #### ##????????? | | ?????????????## &= " #### ### ###??????#?? | | ????????????###"&[% [ ### ##?????#??? | | ????????????##"%&&&; ## ##????????? | | ????????????##"[ ;; #### ##????????? | | ????????????##";;# #### ####????#???? | | ????????????##### ## ######???????? | | ????????????##### ### ###??????????? | | ???????????????####### ###??????????? | | ???????????????####### ## ##???#??????? | | ???????????????????## ###### #### ##??????????? | | ???????????#?????## # ##### ###?????????? | | ?????????????????### ## #### ### ###???????#?? | | ?????????????????### ## #""### # ####???????? | | ??????????????????#####??#?" # ###????????? | | ??????????????????#####??????"# ##????????? | | ??????????????????????????#" "# ##????????? | | ??????????????????????????##### ##????????? | | ???????????????????## ?# # ####????????? | | ???????????????????## ###### # ####????????? | | ???????????????????## ? ###### ## ####????????? | | ????????????????????????????#### # ###???????? | +----------------------------------------------------+ Best States ------------- Heat Dissipation 35 Energy Generation 10 Energy Capacity 250 Matter Stores 300 Matter Capacity 300 Sight Range 16 Terrain Scan Range 16 Terrain Scan Density 10 Evasion (%) 62 Item Schematics ----------------- None Robot Schematics ------------------ None Fabricated ------------ Nothing Repaired ---------- Nothing Studied --------- None Alien Tech Used ----------------- None Achievements -------------- None Challenges ------------ None Game ------ Seed LightProjectileObfuscator Manual? 0 Play Time 00:15:38 Cumulative 167.1 hours Start 2026.04.01 @ 22:56:03 End 2026.04.01 @ 23:10:27 Sessions 1 Manual Loads 0 Difficulty Rogue Special Mode None Game No. 180 Rogue 178 Adventurer 2 Explorer 0 Win Type - Total 0 Types 0/0/0/0/0/0/0/0/0/0 Lore% 67 Gallery% 56 Achievement% 35 Wizard Run 0 Options --------- Layout 2 ASCII 0 Keyboard 1 Movement Numpad Keybinds 0 Fullscreen 1 Font 24/Smallcaps Map View 50x44 Zoom Use 0% Tactical HUD 1 Map Filters NONE Filters NONE Steam SD RUN: e9df499a-ea67-4c1f-b3d6-48378320853a